{"text_format":"1","workbook":"xlsx","n_sheets":2,"sheets":["Исходник","Результат"],"not_rendered":{"charts":0,"images":0,"macros":1,"external_links":0,"defined_names":0,"comments":0,"pivot_tables":0},"unopened":[],"bounds":{"document_bytes":16777216,"sheet_cells":100000,"rows_first":2000,"rows_last":500,"rows_between":2000,"halvings":0,"cell_chars":16384,"cell_head_chars":4096},"cells_cut":0,"cells_raw":0,"read":"whole","date_system":"1900"}

{"sheet":"Исходник","index":0,"n_rows":38,"n_cols":22,"rows_kept":38,"cut":false,"hidden":false,"merged":[]}
["Куратор","Фирма","Город назначения","№ Бланк-заказа","Клиент","Юр. лицо","К оплате (план)","К оплате (план) по прайс-листу","Начало размещения","Окончание размещения","На срок","К оплате(план)/срок","К оплате(план)/срок по прайс-листу","Сумма по выставленному счету (первый платеж)","Количество предоплаченных месяцев (первый платеж)","Корректировка РГ","Корректировка РГ по прайс-листу","Примечание","Сумма предоплаты","Планируемое количество предоплаченных месяцев (первый платеж)","Сравнение","Оплаченный объем по продлениям (план)"]
["Булташева, Регина","ARENA, спортивный клуб","Оренбург","БЗ_48-48-350000","Арена, спортивный клуб","Общество с ограниченной ответственностью \"Арена\"",24480,27200,"2015-01-01","2015-04-30T23:59:59",4,6120,6800,12240,2,6800,6800,"",10000,1,1,{"$error":"#REF!"}]
["Булташева, Регина","Авеста, автошкола","Оренбург","БЗ_48-48-347957","Авеста, автошкола","НОУ «Учебный Центр» «АВЕСТА»",12420,13800,"2015-01-01","2015-04-30T23:59:59",4,3105,3450,6210,2,0,0,"Планируется переезд на другой адрес.",0,0,0,0]
["Булташева, Регина","Алексис, гостинично-развлекательный комплекс","Оренбург","БЗ_48-48-340814","Алексис, гостиничный комплекс","ИП Сариди Анета Алексеевна",23000,28750,"2014-12-01","2015-04-30T23:59:59",5,4600,5750,23000,5,4600,4600,"",18400,4,-1,4600]
["Булташева, Регина","Драфтория, магазин напитков","Оренбург","БЗ_48-48-339002","Драфтория, магазин напитков","Общество с ограниченной ответственностью \"Евродрафт\"",13800,17250,"2014-12-01","2015-04-30T23:59:59",5,2760,3450,13800,5,3650,3650,"",10000,1,1,{"$error":"#REF!"}]
["Булташева, Регина","Маэстро, кафе","Оренбург","БЗ_48-48-345620","Маэстро, кафе","ИП Крапотина Юлия Павловна",14200,14200,"2015-01-01","2015-04-30T23:59:59",4,3550,3550,3550,1,0,0,"Риск ДЗ. Финансовые затруднения",0,0,0,0]
["Булташева, Регина","Флора Стиль, салон цветов","Оренбург","БЗ_48-48-370267","Флора Стиль, салон цветов","ИП Корнилова О.Г.",11700,11700,"2015-03-01","2015-04-30T23:59:59",2,5850,5850,11700,2,5850,5850,"",11700,2,0,5850]
["Вавилина, Кира","Pita House, кафе","Оренбург","БЗ_48-48-381887","Pita House, кафе","ООО \"Нафта Ойл\"",10170,11300,"2015-03-01","2015-04-30T23:59:59",2,5085,5650,10170,2,5650,5650,"",11300,2,0,5650]
["Вавилина, Кира","Гарант, ООО, юридическая фирма","Оренбург","БЗ_48-48-337568","Гарант, ООО, центр правовой поддержки","ООО «Юридическая фирма «Гарант»",18400,23000,"2014-12-01","2015-04-30T23:59:59",5,3680,4600,18400,5,0,0,"Нерентабельность рекламы. Низкий эффект",0,0,0,0]
["Вавилина, Кира","Мир, производственная компания","Оренбург","БЗ_48-48-352191","Мир, производственная компания","ИП Богачева Ольга Васильевна",15000,15000,"2015-01-01","2015-04-30T23:59:59",4,3750,3750,3750,1,3750,3750,"",3750,1,0,3750]
["Вашляева, Полина","Фалькон, лазертаг-клуб","Оренбург","БЗ_48-48-352049","Фалькон, лазертаг-клуб","Гнатюк Маским Игоревич",18800,18800,"2015-01-01","2015-04-30T23:59:59",4,4700,4700,4700,1,4700,4700,"",4700,1,0,4700]
["Голованова, Мария","Bosal+, магазин автотоваров","Оренбург","БЗ_48-48-245084","Bosal+, магазин автотоваров","Индивидуальный Предприниматель Болдырев Олег Евгеньевич",88560,110700,"2014-05-01","2015-04-30T23:59:59",12,7380,9225,88560,12,4700,4700,"уменьшение в связи с кризисом",18800,4,-8,4700]
["Голованова, Мария","Беларусь, ООО, торговый дом","Оренбург","БЗ_48-48-350894","Беларусь, торговый дом","Общество с Ограниченной Ответственностью Торговый Дом \"Беларусь\"",13140,14600,"2015-01-01","2015-04-30T23:59:59",4,3285,3650,6570,2,3285,3285,"2015-04-07",6570,2,0,3285]
["Голованова, Мария","Белый сервис, автосервис","Оренбург","БЗ_48-48-392908","Белый сервис, автосервис","ИП Фокина Наталья Васильевна",1250,1250,"2015-04-01","2015-04-30T23:59:59",1,1250,1250,1250,1,1250,1250,"2015-04-07",1250,1,0,1250]
["Голованова, Мария","ОВК. Инженерные системы, ООО, климатическая компания","Оренбург","БЗ_48-48-353985","Овк. Инженерные системы, ООО, монтажная компания","ООО «ОВК.Инженерные системы»",19200,19200,"2015-01-01","2015-04-30T23:59:59",4,4800,4800,9600,2,3550,3550,"2015-04-07",3550,1,-1,3550]
["Голованова, Мария","Оптика Плюс, сеть салонов оптики","Оренбург","БЗ_48-48-239631","Медицинская Оптика Плюс, сеть салонов оптики","Индивидуальный Предприниматель Сергиенко Валерий Валентинович",50688,57600,"2014-05-01","2015-04-30T23:59:59",12,4224,4800,50688,12,4800,4800,"2015-04-08",19200,4,-8,4800]
["Голованова, Мария","Урал-Климат, инжиниринговая компания","Оренбург","БЗ_48-48-302309","Урал-Климат, инжиниринговая компания","Общество с Ограниченной Ответственностью  «Урал-Климат»",45440,56800,"2014-09-01","2015-04-30T23:59:59",8,5680,7100,45440,8,4600,4600,"2015-04-07",18400,4,-4,4600]
["Дасаева, Нелли","OrenHotel, квартирное бюро","Оренбург","БЗ_48-48-372926","Orenhotel, квартирное бюро","ИП Попова Галина Николаевна",17600,17600,"2015-03-01","2015-04-30T23:59:59",2,8800,8800,8800,1,8800,8800,"Бартер. Техническое продление.",0,0,0,8000]
["Дасаева, Нелли","ГОС, ООО, городская оконная служба","Оренбург","БЗ_48-48-340461","Городская Оконная Служба, торгово-производственная компания, ООО ГОС","Общество с ограниченной ответственностью \"ГОС\"",23000,28750,"2014-12-01","2015-04-30T23:59:59",5,4600,5750,23000,5,0,0,"Риск ДЗ. Финансовые затруднения",0,0,0,0]
["Любимова, Олеся","Интерьерная Лавка, салон мебели и предметов интерьера из Франции","Оренбург","БЗ_48-48-360839","Интерьерная Лавка","ООО \"Факториал\"",12699,15300,"2015-02-01","2015-04-30T23:59:59",3,4233,5100,12699,3,4233,4233,"",12699,3,0,4233]
["Любимова, Олеся","Интерьерная Лавка, салон мебели и предметов интерьера из Франции","Оренбург","БЗ_48-48-392402","Интерьерная Лавка","ООО \"Факториал\"",2000,2500,"2015-04-01","2015-04-30T23:59:59",1,2000,2500,2000,1,0,0,"отказ от пакета",0,0,0,0]
["Любимова, Олеся","Оконные системы, ООО, торгово-производственная компания","Оренбург","БЗ_48-48-317556","Оконные системы, ООО, торгово-производственная компания","ООО\"Оконные системы\"",27600,27600,"2014-11-01","2015-04-30T23:59:59",6,4600,4600,27600,6,4025,4025,"",24150,6,0,4025]
["Любимова, Олеся","ЭТАЛОН, сеть шиномонтажных мастерских","Оренбург","БЗ_48-48-342598","Эталон, сеть шиномонтажных мастерских","ИП  Маркушина Татьяна Георгиевна",13800,17250,"2014-12-01","2015-04-30T23:59:59",5,2760,3450,13800,5,2760,2760,"",13800,5,0,2760]
["Мартьянова, Ирина","7 Небо, ресторанный комплекс","Оренбург","БЗ_48-48-350450","7 Небо, служба доставки готовых блюд","Индивидуальный предприниматель Белов Александр Анатольевич",87700,87700,"2015-01-01","2015-04-30T23:59:59",4,21925,21925,87700,4,0,"","",0,0,0,0]
["Мартьянова, Ирина","REDMOND, кулинарная школа","Оренбург","БЗ_48-48-397507","Редмонд","Общество с ограниченной ответственностью \"Медиа-Пресс 56\"",4850,4850,"2015-04-01","2015-04-30T23:59:59",1,4850,4850,4850,1,0,"","",0,0,0,0]
["Мартьянова, Ирина","ViewTek, рекламная компания, ООО Марин","Оренбург","БЗ_48-48-356815","ViewTek, рекламная компания","ООО \"Марин\"",54200,54200,"2015-01-01","2015-04-30T23:59:59",4,13550,13550,54200,4,0,"","",0,0,0,0]
["Мартьянова, Ирина","Андрей Лукин creative leader TEAM, многопрофильная компания","Оренбург","БЗ_48-48-343116","Андрей Лукин creative leader TEAM, многопрофильная компания","ООО \"Улыбаться надо\"",111375,111375,"2014-12-01","2015-04-30T23:59:59",5,22275,22275,111375,5,0,"","",0,0,0,0]
["Мартьянова, Ирина","ЗАТУМАНИЯ, загородный клуб отдыха","Оренбург","БЗ_48-48-354149","ЗАТУМАНИЯ, загородный клуб отдыха","ООО \"ЗАТУМАНИЯ\"",43400,43400,"2015-01-01","2015-04-30T23:59:59",4,10850,10850,43400,4,0,"","",0,0,0,0]
["Мартьянова, Ирина","ЗАТУМАНИЯ, загородный клуб отдыха","Оренбург","БЗ_48-48-355712","ЗАТУМАНИЯ, загородный клуб отдыха","ООО \"ЗАТУМАНИЯ\"",51800,51800,"2015-01-01","2015-04-30T23:59:59",4,12950,12950,51800,4,0,"","",0,0,0,0]
["Мартьянова, Ирина","Любимый город, рекламная компания","Оренбург","БЗ_48-48-345222","Любимый город, рекламная компания","ООО \"Рекламная компания \"Любимый город\"",48300,48300,"2015-01-01","2015-04-30T23:59:59",4,12075,12075,48300,4,0,"","",0,0,0,0]
["Мартьянова, Ирина","Окна СОК Оренбург, торгово-ремонтная компания","Оренбург","БЗ_48-48-356010","Окна СОК Оренбург, торгово-монтажная компания","Общество с ограниченной ответственностью \"Кубик Рубик\"",40300,40300,"2015-01-01","2015-04-30T23:59:59",4,10075,10075,40300,4,0,"","",0,0,0,0]
["Мартьянова, Ирина","Оперативная полиграфия, многопрофильная компания","Оренбург","БЗ_48-48-356011","Оперативная полиграфия, торговая компания","ООО \"Оперативная полиграфия\"",24400,24400,"2015-01-01","2015-04-30T23:59:59",4,6100,6100,24400,4,0,"","",0,0,0,0]
["Мартьянова, Ирина","Пятый сезон, мужской клуб","Оренбург","БЗ_48-48-397666","Пятый сезон, мужской клуб","ООО \"Апрель\"",20250,20250,"2015-04-01","2015-04-30T23:59:59",1,20250,20250,20250,1,0,"","",0,0,0,0]
["Мартьянова, Ирина","Пятый сезон, мужской клуб","Оренбург","БЗ_48-48-391945-Online","Пятый сезон, мужской клуб","ООО \"Апрель\"",6525,6525,"2015-04-01","2015-04-30T23:59:59",1,6525,6525,6525,1,0,"","",0,0,0,0]
["Мартьянова, Ирина","Тонус-Клуб, женский спортивно-оздоровительный центр","Оренбург","БЗ_48-48-397679","Тонус-клуб, оздоровительный центр","ИП Забудская Н.А.",14150,14150,"2015-04-01","2015-04-30T23:59:59",1,14150,14150,14150,1,0,"","",0,0,0,0]
["Мартьянова, Ирина","УралЭкспо, компания по организации выставочных и праздничных мероприятий","Оренбург","БЗ_48-48-397671","УралЭкспо, компания по организации выставочных и праздничных мероприятий","ОАО Постоянно действующая выставка Оренбургской области \"УралЭкспо\"",9000,9000,"2015-04-01","2015-04-30T23:59:59",1,9000,9000,9000,1,0,"","",0,0,0,0]
["Молдырева, Любовь","Валентина, развлекательный центр","Оренбург","БЗ_48-48-349712","Валентина, сауна","ОБЩЕСТВО С ОГРАНИЧЕННОЙ ОТВЕТСТВЕННОСТЬЮ «Валентина – 2006»",13140,14600,"2015-01-01","2015-04-30T23:59:59",4,3285,3650,6570,2,3285,3285,"отказ от пакета",6570,2,0,3285]
["Уварова, Светлана","Надежда, автоцентр, официальный дилер УАЗ, BAW-RUS","Оренбург","БЗ_48-48-337183","Надежда, сеть автомагазинов","Общество с ограниченной ответственностью  \"Надежда\"",28800,36000,"2014-12-01","2015-04-30T23:59:59",5,5760,7200,28800,5,5760,5760,"2015-04-14",28800,5,0,5760]

{"sheet":"Результат","index":1,"n_rows":20,"n_cols":9,"rows_kept":20,"cut":false,"hidden":false,"merged":[]}
[]
[]
["Куратор","Фирма"]
[{"$f":"INDEX(Таб1[Куратор],SMALL(IF(MATCH(Таб1[Куратор],Таб1[Куратор],0)=ROW(Таб1[Куратор])-1,ROW(Таб1[Куратор])-1),COLUMN(A1)))","v":"Булташева, Регина"},{"$f":"INDEX(Таб1[Куратор],SMALL(IF(MATCH(Таб1[Куратор],Таб1[Куратор],0)=ROW(Таб1[Куратор])-1,ROW(Таб1[Куратор])-1),COLUMN(B1)))","v":"Вавилина, Кира"},{"$f":"INDEX(Таб1[Куратор],SMALL(IF(MATCH(Таб1[Куратор],Таб1[Куратор],0)=ROW(Таб1[Куратор])-1,ROW(Таб1[Куратор])-1),COLUMN(C1)))","v":"Вашляева, Полина"},{"$f":"INDEX(Таб1[Куратор],SMALL(IF(MATCH(Таб1[Куратор],Таб1[Куратор],0)=ROW(Таб1[Куратор])-1,ROW(Таб1[Куратор])-1),COLUMN(D1)))","v":"Голованова, Мария"},{"$f":"INDEX(Таб1[Куратор],SMALL(IF(MATCH(Таб1[Куратор],Таб1[Куратор],0)=ROW(Таб1[Куратор])-1,ROW(Таб1[Куратор])-1),COLUMN(E1)))","v":"Дасаева, Нелли"},{"$f":"INDEX(Таб1[Куратор],SMALL(IF(MATCH(Таб1[Куратор],Таб1[Куратор],0)=ROW(Таб1[Куратор])-1,ROW(Таб1[Куратор])-1),COLUMN(F1)))","v":"Любимова, Олеся"},{"$f":"INDEX(Таб1[Куратор],SMALL(IF(MATCH(Таб1[Куратор],Таб1[Куратор],0)=ROW(Таб1[Куратор])-1,ROW(Таб1[Куратор])-1),COLUMN(G1)))","v":"Мартьянова, Ирина"},{"$f":"INDEX(Таб1[Куратор],SMALL(IF(MATCH(Таб1[Куратор],Таб1[Куратор],0)=ROW(Таб1[Куратор])-1,ROW(Таб1[Куратор])-1),COLUMN(H1)))","v":"Молдырева, Любовь"},{"$f":"INDEX(Таб1[Куратор],SMALL(IF(MATCH(Таб1[Куратор],Таб1[Куратор],0)=ROW(Таб1[Куратор])-1,ROW(Таб1[Куратор])-1),COLUMN(I1)))","v":"Уварова, Светлана"}]
[{"$f":"IFERROR(INDEX(Таб1[Фирма],SMALL(IF(A$4=Таб1[Куратор],ROW(Таб1[Фирма])-1),ROW(A1))),\"\")","v":"ARENA, спортивный клуб"},{"$f":"IFERROR(INDEX(Таб1[Фирма],SMALL(IF(B$4=Таб1[Куратор],ROW(Таб1[Фирма])-1),ROW(B1))),\"\")","v":"Pita House, кафе"},{"$f":"IFERROR(INDEX(Таб1[Фирма],SMALL(IF(C$4=Таб1[Куратор],ROW(Таб1[Фирма])-1),ROW(C1))),\"\")","v":"Фалькон, лазертаг-клуб"},{"$f":"IFERROR(INDEX(Таб1[Фирма],SMALL(IF(D$4=Таб1[Куратор],ROW(Таб1[Фирма])-1),ROW(D1))),\"\")","v":"Bosal+, магазин автотоваров"},{"$f":"IFERROR(INDEX(Таб1[Фирма],SMALL(IF(E$4=Таб1[Куратор],ROW(Таб1[Фирма])-1),ROW(E1))),\"\")","v":"OrenHotel, квартирное бюро"},{"$f":"IFERROR(INDEX(Таб1[Фирма],SMALL(IF(F$4=Таб1[Куратор],ROW(Таб1[Фирма])-1),ROW(F1))),\"\")","v":"Интерьерная Лавка, салон мебели и предметов интерьера из Франции"},{"$f":"IFERROR(INDEX(Таб1[Фирма],SMALL(IF(G$4=Таб1[Куратор],ROW(Таб1[Фирма])-1),ROW(G1))),\"\")","v":"7 Небо, ресторанный комплекс"},{"$f":"IFERROR(INDEX(Таб1[Фирма],SMALL(IF(H$4=Таб1[Куратор],ROW(Таб1[Фирма])-1),ROW(H1))),\"\")","v":"Валентина, развлекательный центр"},{"$f":"IFERROR(INDEX(Таб1[Фирма],SMALL(IF(I$4=Таб1[Куратор],ROW(Таб1[Фирма])-1),ROW(I1))),\"\")","v":"Надежда, автоцентр, официальный дилер УАЗ, BAW-RUS"}]
[{"$f":"IFERROR(INDEX(Таб1[Фирма],SMALL(IF(A$4=Таб1[Куратор],ROW(Таб1[Фирма])-1),ROW(A2))),\"\")","v":"Авеста, автошкола"},{"$f":"IFERROR(INDEX(Таб1[Фирма],SMALL(IF(B$4=Таб1[Куратор],ROW(Таб1[Фирма])-1),ROW(B2))),\"\")","v":"Гарант, ООО, юридическая фирма"},{"$f":"IFERROR(INDEX(Таб1[Фирма],SMALL(IF(C$4=Таб1[Куратор],ROW(Таб1[Фирма])-1),ROW(C2))),\"\")","v":""},{"$f":"IFERROR(INDEX(Таб1[Фирма],SMALL(IF(D$4=Таб1[Куратор],ROW(Таб1[Фирма])-1),ROW(D2))),\"\")","v":"Беларусь, ООО, торговый дом"},{"$f":"IFERROR(INDEX(Таб1[Фирма],SMALL(IF(E$4=Таб1[Куратор],ROW(Таб1[Фирма])-1),ROW(E2))),\"\")","v":"ГОС, ООО, городская оконная служба"},{"$f":"IFERROR(INDEX(Таб1[Фирма],SMALL(IF(F$4=Таб1[Куратор],ROW(Таб1[Фирма])-1),ROW(F2))),\"\")","v":"Интерьерная Лавка, салон мебели и предметов интерьера из Франции"},{"$f":"IFERROR(INDEX(Таб1[Фирма],SMALL(IF(G$4=Таб1[Куратор],ROW(Таб1[Фирма])-1),ROW(G2))),\"\")","v":"REDMOND, кулинарная школа"},{"$f":"IFERROR(INDEX(Таб1[Фирма],SMALL(IF(H$4=Таб1[Куратор],ROW(Таб1[Фирма])-1),ROW(H2))),\"\")","v":""},{"$f":"IFERROR(INDEX(Таб1[Фирма],SMALL(IF(I$4=Таб1[Куратор],ROW(Таб1[Фирма])-1),ROW(I2))),\"\")","v":""}]
[{"$f":"IFERROR(INDEX(Таб1[Фирма],SMALL(IF(A$4=Таб1[Куратор],ROW(Таб1[Фирма])-1),ROW(A3))),\"\")","v":"Алексис, гостинично-развлекательный комплекс"},{"$f":"IFERROR(INDEX(Таб1[Фирма],SMALL(IF(B$4=Таб1[Куратор],ROW(Таб1[Фирма])-1),ROW(B3))),\"\")","v":"Мир, производственная компания"},{"$f":"IFERROR(INDEX(Таб1[Фирма],SMALL(IF(C$4=Таб1[Куратор],ROW(Таб1[Фирма])-1),ROW(C3))),\"\")","v":""},{"$f":"IFERROR(INDEX(Таб1[Фирма],SMALL(IF(D$4=Таб1[Куратор],ROW(Таб1[Фирма])-1),ROW(D3))),\"\")","v":"Белый сервис, автосервис"},{"$f":"IFERROR(INDEX(Таб1[Фирма],SMALL(IF(E$4=Таб1[Куратор],ROW(Таб1[Фирма])-1),ROW(E3))),\"\")","v":""},{"$f":"IFERROR(INDEX(Таб1[Фирма],SMALL(IF(F$4=Таб1[Куратор],ROW(Таб1[Фирма])-1),ROW(F3))),\"\")","v":"Оконные системы, ООО, торгово-производственная компания"},{"$f":"IFERROR(INDEX(Таб1[Фирма],SMALL(IF(G$4=Таб1[Куратор],ROW(Таб1[Фирма])-1),ROW(G3))),\"\")","v":"ViewTek, рекламная компания, ООО Марин"},{"$f":"IFERROR(INDEX(Таб1[Фирма],SMALL(IF(H$4=Таб1[Куратор],ROW(Таб1[Фирма])-1),ROW(H3))),\"\")","v":""},{"$f":"IFERROR(INDEX(Таб1[Фирма],SMALL(IF(I$4=Таб1[Куратор],ROW(Таб1[Фирма])-1),ROW(I3))),\"\")","v":""}]
[{"$f":"IFERROR(INDEX(Таб1[Фирма],SMALL(IF(A$4=Таб1[Куратор],ROW(Таб1[Фирма])-1),ROW(A4))),\"\")","v":"Драфтория, магазин напитков"},{"$f":"IFERROR(INDEX(Таб1[Фирма],SMALL(IF(B$4=Таб1[Куратор],ROW(Таб1[Фирма])-1),ROW(B4))),\"\")","v":""},{"$f":"IFERROR(INDEX(Таб1[Фирма],SMALL(IF(C$4=Таб1[Куратор],ROW(Таб1[Фирма])-1),ROW(C4))),\"\")","v":""},{"$f":"IFERROR(INDEX(Таб1[Фирма],SMALL(IF(D$4=Таб1[Куратор],ROW(Таб1[Фирма])-1),ROW(D4))),\"\")","v":"ОВК. Инженерные системы, ООО, климатическая компания"},{"$f":"IFERROR(INDEX(Таб1[Фирма],SMALL(IF(E$4=Таб1[Куратор],ROW(Таб1[Фирма])-1),ROW(E4))),\"\")","v":""},{"$f":"IFERROR(INDEX(Таб1[Фирма],SMALL(IF(F$4=Таб1[Куратор],ROW(Таб1[Фирма])-1),ROW(F4))),\"\")","v":"ЭТАЛОН, сеть шиномонтажных мастерских"},{"$f":"IFERROR(INDEX(Таб1[Фирма],SMALL(IF(G$4=Таб1[Куратор],ROW(Таб1[Фирма])-1),ROW(G4))),\"\")","v":"Андрей Лукин creative leader TEAM, многопрофильная компания"},{"$f":"IFERROR(INDEX(Таб1[Фирма],SMALL(IF(H$4=Таб1[Куратор],ROW(Таб1[Фирма])-1),ROW(H4))),\"\")","v":""},{"$f":"IFERROR(INDEX(Таб1[Фирма],SMALL(IF(I$4=Таб1[Куратор],ROW(Таб1[Фирма])-1),ROW(I4))),\"\")","v":""}]
[{"$f":"IFERROR(INDEX(Таб1[Фирма],SMALL(IF(A$4=Таб1[Куратор],ROW(Таб1[Фирма])-1),ROW(A5))),\"\")","v":"Маэстро, кафе"},{"$f":"IFERROR(INDEX(Таб1[Фирма],SMALL(IF(B$4=Таб1[Куратор],ROW(Таб1[Фирма])-1),ROW(B5))),\"\")","v":""},{"$f":"IFERROR(INDEX(Таб1[Фирма],SMALL(IF(C$4=Таб1[Куратор],ROW(Таб1[Фирма])-1),ROW(C5))),\"\")","v":""},{"$f":"IFERROR(INDEX(Таб1[Фирма],SMALL(IF(D$4=Таб1[Куратор],ROW(Таб1[Фирма])-1),ROW(D5))),\"\")","v":"Оптика Плюс, сеть салонов оптики"},{"$f":"IFERROR(INDEX(Таб1[Фирма],SMALL(IF(E$4=Таб1[Куратор],ROW(Таб1[Фирма])-1),ROW(E5))),\"\")","v":""},{"$f":"IFERROR(INDEX(Таб1[Фирма],SMALL(IF(F$4=Таб1[Куратор],ROW(Таб1[Фирма])-1),ROW(F5))),\"\")","v":""},{"$f":"IFERROR(INDEX(Таб1[Фирма],SMALL(IF(G$4=Таб1[Куратор],ROW(Таб1[Фирма])-1),ROW(G5))),\"\")","v":"ЗАТУМАНИЯ, загородный клуб отдыха"},{"$f":"IFERROR(INDEX(Таб1[Фирма],SMALL(IF(H$4=Таб1[Куратор],ROW(Таб1[Фирма])-1),ROW(H5))),\"\")","v":""},{"$f":"IFERROR(INDEX(Таб1[Фирма],SMALL(IF(I$4=Таб1[Куратор],ROW(Таб1[Фирма])-1),ROW(I5))),\"\")","v":""}]
[{"$f":"IFERROR(INDEX(Таб1[Фирма],SMALL(IF(A$4=Таб1[Куратор],ROW(Таб1[Фирма])-1),ROW(A6))),\"\")","v":"Флора Стиль, салон цветов"},{"$f":"IFERROR(INDEX(Таб1[Фирма],SMALL(IF(B$4=Таб1[Куратор],ROW(Таб1[Фирма])-1),ROW(B6))),\"\")","v":""},{"$f":"IFERROR(INDEX(Таб1[Фирма],SMALL(IF(C$4=Таб1[Куратор],ROW(Таб1[Фирма])-1),ROW(C6))),\"\")","v":""},{"$f":"IFERROR(INDEX(Таб1[Фирма],SMALL(IF(D$4=Таб1[Куратор],ROW(Таб1[Фирма])-1),ROW(D6))),\"\")","v":"Урал-Климат, инжиниринговая компания"},{"$f":"IFERROR(INDEX(Таб1[Фирма],SMALL(IF(E$4=Таб1[Куратор],ROW(Таб1[Фирма])-1),ROW(E6))),\"\")","v":""},{"$f":"IFERROR(INDEX(Таб1[Фирма],SMALL(IF(F$4=Таб1[Куратор],ROW(Таб1[Фирма])-1),ROW(F6))),\"\")","v":""},{"$f":"IFERROR(INDEX(Таб1[Фирма],SMALL(IF(G$4=Таб1[Куратор],ROW(Таб1[Фирма])-1),ROW(G6))),\"\")","v":"ЗАТУМАНИЯ, загородный клуб отдыха"},{"$f":"IFERROR(INDEX(Таб1[Фирма],SMALL(IF(H$4=Таб1[Куратор],ROW(Таб1[Фирма])-1),ROW(H6))),\"\")","v":""},{"$f":"IFERROR(INDEX(Таб1[Фирма],SMALL(IF(I$4=Таб1[Куратор],ROW(Таб1[Фирма])-1),ROW(I6))),\"\")","v":""}]
[{"$f":"IFERROR(INDEX(Таб1[Фирма],SMALL(IF(A$4=Таб1[Куратор],ROW(Таб1[Фирма])-1),ROW(A7))),\"\")","v":""},{"$f":"IFERROR(INDEX(Таб1[Фирма],SMALL(IF(B$4=Таб1[Куратор],ROW(Таб1[Фирма])-1),ROW(B7))),\"\")","v":""},{"$f":"IFERROR(INDEX(Таб1[Фирма],SMALL(IF(C$4=Таб1[Куратор],ROW(Таб1[Фирма])-1),ROW(C7))),\"\")","v":""},{"$f":"IFERROR(INDEX(Таб1[Фирма],SMALL(IF(D$4=Таб1[Куратор],ROW(Таб1[Фирма])-1),ROW(D7))),\"\")","v":""},{"$f":"IFERROR(INDEX(Таб1[Фирма],SMALL(IF(E$4=Таб1[Куратор],ROW(Таб1[Фирма])-1),ROW(E7))),\"\")","v":""},{"$f":"IFERROR(INDEX(Таб1[Фирма],SMALL(IF(F$4=Таб1[Куратор],ROW(Таб1[Фирма])-1),ROW(F7))),\"\")","v":""},{"$f":"IFERROR(INDEX(Таб1[Фирма],SMALL(IF(G$4=Таб1[Куратор],ROW(Таб1[Фирма])-1),ROW(G7))),\"\")","v":"Любимый город, рекламная компания"},{"$f":"IFERROR(INDEX(Таб1[Фирма],SMALL(IF(H$4=Таб1[Куратор],ROW(Таб1[Фирма])-1),ROW(H7))),\"\")","v":""},{"$f":"IFERROR(INDEX(Таб1[Фирма],SMALL(IF(I$4=Таб1[Куратор],ROW(Таб1[Фирма])-1),ROW(I7))),\"\")","v":""}]
[{"$f":"IFERROR(INDEX(Таб1[Фирма],SMALL(IF(A$4=Таб1[Куратор],ROW(Таб1[Фирма])-1),ROW(A8))),\"\")","v":""},{"$f":"IFERROR(INDEX(Таб1[Фирма],SMALL(IF(B$4=Таб1[Куратор],ROW(Таб1[Фирма])-1),ROW(B8))),\"\")","v":""},{"$f":"IFERROR(INDEX(Таб1[Фирма],SMALL(IF(C$4=Таб1[Куратор],ROW(Таб1[Фирма])-1),ROW(C8))),\"\")","v":""},{"$f":"IFERROR(INDEX(Таб1[Фирма],SMALL(IF(D$4=Таб1[Куратор],ROW(Таб1[Фирма])-1),ROW(D8))),\"\")","v":""},{"$f":"IFERROR(INDEX(Таб1[Фирма],SMALL(IF(E$4=Таб1[Куратор],ROW(Таб1[Фирма])-1),ROW(E8))),\"\")","v":""},{"$f":"IFERROR(INDEX(Таб1[Фирма],SMALL(IF(F$4=Таб1[Куратор],ROW(Таб1[Фирма])-1),ROW(F8))),\"\")","v":""},{"$f":"IFERROR(INDEX(Таб1[Фирма],SMALL(IF(G$4=Таб1[Куратор],ROW(Таб1[Фирма])-1),ROW(G8))),\"\")","v":"Окна СОК Оренбург, торгово-ремонтная компания"},{"$f":"IFERROR(INDEX(Таб1[Фирма],SMALL(IF(H$4=Таб1[Куратор],ROW(Таб1[Фирма])-1),ROW(H8))),\"\")","v":""},{"$f":"IFERROR(INDEX(Таб1[Фирма],SMALL(IF(I$4=Таб1[Куратор],ROW(Таб1[Фирма])-1),ROW(I8))),\"\")","v":""}]
[{"$f":"IFERROR(INDEX(Таб1[Фирма],SMALL(IF(A$4=Таб1[Куратор],ROW(Таб1[Фирма])-1),ROW(A9))),\"\")","v":""},{"$f":"IFERROR(INDEX(Таб1[Фирма],SMALL(IF(B$4=Таб1[Куратор],ROW(Таб1[Фирма])-1),ROW(B9))),\"\")","v":""},{"$f":"IFERROR(INDEX(Таб1[Фирма],SMALL(IF(C$4=Таб1[Куратор],ROW(Таб1[Фирма])-1),ROW(C9))),\"\")","v":""},{"$f":"IFERROR(INDEX(Таб1[Фирма],SMALL(IF(D$4=Таб1[Куратор],ROW(Таб1[Фирма])-1),ROW(D9))),\"\")","v":""},{"$f":"IFERROR(INDEX(Таб1[Фирма],SMALL(IF(E$4=Таб1[Куратор],ROW(Таб1[Фирма])-1),ROW(E9))),\"\")","v":""},{"$f":"IFERROR(INDEX(Таб1[Фирма],SMALL(IF(F$4=Таб1[Куратор],ROW(Таб1[Фирма])-1),ROW(F9))),\"\")","v":""},{"$f":"IFERROR(INDEX(Таб1[Фирма],SMALL(IF(G$4=Таб1[Куратор],ROW(Таб1[Фирма])-1),ROW(G9))),\"\")","v":"Оперативная полиграфия, многопрофильная компания"},{"$f":"IFERROR(INDEX(Таб1[Фирма],SMALL(IF(H$4=Таб1[Куратор],ROW(Таб1[Фирма])-1),ROW(H9))),\"\")","v":""},{"$f":"IFERROR(INDEX(Таб1[Фирма],SMALL(IF(I$4=Таб1[Куратор],ROW(Таб1[Фирма])-1),ROW(I9))),\"\")","v":""}]
[{"$f":"IFERROR(INDEX(Таб1[Фирма],SMALL(IF(A$4=Таб1[Куратор],ROW(Таб1[Фирма])-1),ROW(A10))),\"\")","v":""},{"$f":"IFERROR(INDEX(Таб1[Фирма],SMALL(IF(B$4=Таб1[Куратор],ROW(Таб1[Фирма])-1),ROW(B10))),\"\")","v":""},{"$f":"IFERROR(INDEX(Таб1[Фирма],SMALL(IF(C$4=Таб1[Куратор],ROW(Таб1[Фирма])-1),ROW(C10))),\"\")","v":""},{"$f":"IFERROR(INDEX(Таб1[Фирма],SMALL(IF(D$4=Таб1[Куратор],ROW(Таб1[Фирма])-1),ROW(D10))),\"\")","v":""},{"$f":"IFERROR(INDEX(Таб1[Фирма],SMALL(IF(E$4=Таб1[Куратор],ROW(Таб1[Фирма])-1),ROW(E10))),\"\")","v":""},{"$f":"IFERROR(INDEX(Таб1[Фирма],SMALL(IF(F$4=Таб1[Куратор],ROW(Таб1[Фирма])-1),ROW(F10))),\"\")","v":""},{"$f":"IFERROR(INDEX(Таб1[Фирма],SMALL(IF(G$4=Таб1[Куратор],ROW(Таб1[Фирма])-1),ROW(G10))),\"\")","v":"Пятый сезон, мужской клуб"},{"$f":"IFERROR(INDEX(Таб1[Фирма],SMALL(IF(H$4=Таб1[Куратор],ROW(Таб1[Фирма])-1),ROW(H10))),\"\")","v":""},{"$f":"IFERROR(INDEX(Таб1[Фирма],SMALL(IF(I$4=Таб1[Куратор],ROW(Таб1[Фирма])-1),ROW(I10))),\"\")","v":""}]
[{"$f":"IFERROR(INDEX(Таб1[Фирма],SMALL(IF(A$4=Таб1[Куратор],ROW(Таб1[Фирма])-1),ROW(A11))),\"\")","v":""},{"$f":"IFERROR(INDEX(Таб1[Фирма],SMALL(IF(B$4=Таб1[Куратор],ROW(Таб1[Фирма])-1),ROW(B11))),\"\")","v":""},{"$f":"IFERROR(INDEX(Таб1[Фирма],SMALL(IF(C$4=Таб1[Куратор],ROW(Таб1[Фирма])-1),ROW(C11))),\"\")","v":""},{"$f":"IFERROR(INDEX(Таб1[Фирма],SMALL(IF(D$4=Таб1[Куратор],ROW(Таб1[Фирма])-1),ROW(D11))),\"\")","v":""},{"$f":"IFERROR(INDEX(Таб1[Фирма],SMALL(IF(E$4=Таб1[Куратор],ROW(Таб1[Фирма])-1),ROW(E11))),\"\")","v":""},{"$f":"IFERROR(INDEX(Таб1[Фирма],SMALL(IF(F$4=Таб1[Куратор],ROW(Таб1[Фирма])-1),ROW(F11))),\"\")","v":""},{"$f":"IFERROR(INDEX(Таб1[Фирма],SMALL(IF(G$4=Таб1[Куратор],ROW(Таб1[Фирма])-1),ROW(G11))),\"\")","v":"Пятый сезон, мужской клуб"},{"$f":"IFERROR(INDEX(Таб1[Фирма],SMALL(IF(H$4=Таб1[Куратор],ROW(Таб1[Фирма])-1),ROW(H11))),\"\")","v":""},{"$f":"IFERROR(INDEX(Таб1[Фирма],SMALL(IF(I$4=Таб1[Куратор],ROW(Таб1[Фирма])-1),ROW(I11))),\"\")","v":""}]
[{"$f":"IFERROR(INDEX(Таб1[Фирма],SMALL(IF(A$4=Таб1[Куратор],ROW(Таб1[Фирма])-1),ROW(A12))),\"\")","v":""},{"$f":"IFERROR(INDEX(Таб1[Фирма],SMALL(IF(B$4=Таб1[Куратор],ROW(Таб1[Фирма])-1),ROW(B12))),\"\")","v":""},{"$f":"IFERROR(INDEX(Таб1[Фирма],SMALL(IF(C$4=Таб1[Куратор],ROW(Таб1[Фирма])-1),ROW(C12))),\"\")","v":""},{"$f":"IFERROR(INDEX(Таб1[Фирма],SMALL(IF(D$4=Таб1[Куратор],ROW(Таб1[Фирма])-1),ROW(D12))),\"\")","v":""},{"$f":"IFERROR(INDEX(Таб1[Фирма],SMALL(IF(E$4=Таб1[Куратор],ROW(Таб1[Фирма])-1),ROW(E12))),\"\")","v":""},{"$f":"IFERROR(INDEX(Таб1[Фирма],SMALL(IF(F$4=Таб1[Куратор],ROW(Таб1[Фирма])-1),ROW(F12))),\"\")","v":""},{"$f":"IFERROR(INDEX(Таб1[Фирма],SMALL(IF(G$4=Таб1[Куратор],ROW(Таб1[Фирма])-1),ROW(G12))),\"\")","v":"Тонус-Клуб, женский спортивно-оздоровительный центр"},{"$f":"IFERROR(INDEX(Таб1[Фирма],SMALL(IF(H$4=Таб1[Куратор],ROW(Таб1[Фирма])-1),ROW(H12))),\"\")","v":""},{"$f":"IFERROR(INDEX(Таб1[Фирма],SMALL(IF(I$4=Таб1[Куратор],ROW(Таб1[Фирма])-1),ROW(I12))),\"\")","v":""}]
[{"$f":"IFERROR(INDEX(Таб1[Фирма],SMALL(IF(A$4=Таб1[Куратор],ROW(Таб1[Фирма])-1),ROW(A13))),\"\")","v":""},{"$f":"IFERROR(INDEX(Таб1[Фирма],SMALL(IF(B$4=Таб1[Куратор],ROW(Таб1[Фирма])-1),ROW(B13))),\"\")","v":""},{"$f":"IFERROR(INDEX(Таб1[Фирма],SMALL(IF(C$4=Таб1[Куратор],ROW(Таб1[Фирма])-1),ROW(C13))),\"\")","v":""},{"$f":"IFERROR(INDEX(Таб1[Фирма],SMALL(IF(D$4=Таб1[Куратор],ROW(Таб1[Фирма])-1),ROW(D13))),\"\")","v":""},{"$f":"IFERROR(INDEX(Таб1[Фирма],SMALL(IF(E$4=Таб1[Куратор],ROW(Таб1[Фирма])-1),ROW(E13))),\"\")","v":""},{"$f":"IFERROR(INDEX(Таб1[Фирма],SMALL(IF(F$4=Таб1[Куратор],ROW(Таб1[Фирма])-1),ROW(F13))),\"\")","v":""},{"$f":"IFERROR(INDEX(Таб1[Фирма],SMALL(IF(G$4=Таб1[Куратор],ROW(Таб1[Фирма])-1),ROW(G13))),\"\")","v":"УралЭкспо, компания по организации выставочных и праздничных мероприятий"},{"$f":"IFERROR(INDEX(Таб1[Фирма],SMALL(IF(H$4=Таб1[Куратор],ROW(Таб1[Фирма])-1),ROW(H13))),\"\")","v":""},{"$f":"IFERROR(INDEX(Таб1[Фирма],SMALL(IF(I$4=Таб1[Куратор],ROW(Таб1[Фирма])-1),ROW(I13))),\"\")","v":""}]
[{"$f":"IFERROR(INDEX(Таб1[Фирма],SMALL(IF(A$4=Таб1[Куратор],ROW(Таб1[Фирма])-1),ROW(A14))),\"\")","v":""},{"$f":"IFERROR(INDEX(Таб1[Фирма],SMALL(IF(B$4=Таб1[Куратор],ROW(Таб1[Фирма])-1),ROW(B14))),\"\")","v":""},{"$f":"IFERROR(INDEX(Таб1[Фирма],SMALL(IF(C$4=Таб1[Куратор],ROW(Таб1[Фирма])-1),ROW(C14))),\"\")","v":""},{"$f":"IFERROR(INDEX(Таб1[Фирма],SMALL(IF(D$4=Таб1[Куратор],ROW(Таб1[Фирма])-1),ROW(D14))),\"\")","v":""},{"$f":"IFERROR(INDEX(Таб1[Фирма],SMALL(IF(E$4=Таб1[Куратор],ROW(Таб1[Фирма])-1),ROW(E14))),\"\")","v":""},{"$f":"IFERROR(INDEX(Таб1[Фирма],SMALL(IF(F$4=Таб1[Куратор],ROW(Таб1[Фирма])-1),ROW(F14))),\"\")","v":""},{"$f":"IFERROR(INDEX(Таб1[Фирма],SMALL(IF(G$4=Таб1[Куратор],ROW(Таб1[Фирма])-1),ROW(G14))),\"\")","v":""},{"$f":"IFERROR(INDEX(Таб1[Фирма],SMALL(IF(H$4=Таб1[Куратор],ROW(Таб1[Фирма])-1),ROW(H14))),\"\")","v":""},{"$f":"IFERROR(INDEX(Таб1[Фирма],SMALL(IF(I$4=Таб1[Куратор],ROW(Таб1[Фирма])-1),ROW(I14))),\"\")","v":""}]
[{"$f":"IFERROR(INDEX(Таб1[Фирма],SMALL(IF(A$4=Таб1[Куратор],ROW(Таб1[Фирма])-1),ROW(A15))),\"\")","v":""},{"$f":"IFERROR(INDEX(Таб1[Фирма],SMALL(IF(B$4=Таб1[Куратор],ROW(Таб1[Фирма])-1),ROW(B15))),\"\")","v":""},{"$f":"IFERROR(INDEX(Таб1[Фирма],SMALL(IF(C$4=Таб1[Куратор],ROW(Таб1[Фирма])-1),ROW(C15))),\"\")","v":""},{"$f":"IFERROR(INDEX(Таб1[Фирма],SMALL(IF(D$4=Таб1[Куратор],ROW(Таб1[Фирма])-1),ROW(D15))),\"\")","v":""},{"$f":"IFERROR(INDEX(Таб1[Фирма],SMALL(IF(E$4=Таб1[Куратор],ROW(Таб1[Фирма])-1),ROW(E15))),\"\")","v":""},{"$f":"IFERROR(INDEX(Таб1[Фирма],SMALL(IF(F$4=Таб1[Куратор],ROW(Таб1[Фирма])-1),ROW(F15))),\"\")","v":""},{"$f":"IFERROR(INDEX(Таб1[Фирма],SMALL(IF(G$4=Таб1[Куратор],ROW(Таб1[Фирма])-1),ROW(G15))),\"\")","v":""},{"$f":"IFERROR(INDEX(Таб1[Фирма],SMALL(IF(H$4=Таб1[Куратор],ROW(Таб1[Фирма])-1),ROW(H15))),\"\")","v":""},{"$f":"IFERROR(INDEX(Таб1[Фирма],SMALL(IF(I$4=Таб1[Куратор],ROW(Таб1[Фирма])-1),ROW(I15))),\"\")","v":""}]
[{"$f":"IFERROR(INDEX(Таб1[Фирма],SMALL(IF(A$4=Таб1[Куратор],ROW(Таб1[Фирма])-1),ROW(A16))),\"\")","v":""},{"$f":"IFERROR(INDEX(Таб1[Фирма],SMALL(IF(B$4=Таб1[Куратор],ROW(Таб1[Фирма])-1),ROW(B16))),\"\")","v":""},{"$f":"IFERROR(INDEX(Таб1[Фирма],SMALL(IF(C$4=Таб1[Куратор],ROW(Таб1[Фирма])-1),ROW(C16))),\"\")","v":""},{"$f":"IFERROR(INDEX(Таб1[Фирма],SMALL(IF(D$4=Таб1[Куратор],ROW(Таб1[Фирма])-1),ROW(D16))),\"\")","v":""},{"$f":"IFERROR(INDEX(Таб1[Фирма],SMALL(IF(E$4=Таб1[Куратор],ROW(Таб1[Фирма])-1),ROW(E16))),\"\")","v":""},{"$f":"IFERROR(INDEX(Таб1[Фирма],SMALL(IF(F$4=Таб1[Куратор],ROW(Таб1[Фирма])-1),ROW(F16))),\"\")","v":""},{"$f":"IFERROR(INDEX(Таб1[Фирма],SMALL(IF(G$4=Таб1[Куратор],ROW(Таб1[Фирма])-1),ROW(G16))),\"\")","v":""},{"$f":"IFERROR(INDEX(Таб1[Фирма],SMALL(IF(H$4=Таб1[Куратор],ROW(Таб1[Фирма])-1),ROW(H16))),\"\")","v":""},{"$f":"IFERROR(INDEX(Таб1[Фирма],SMALL(IF(I$4=Таб1[Куратор],ROW(Таб1[Фирма])-1),ROW(I16))),\"\")","v":""}]